fUSD/lending_fUSD_20260702
["ID","MTS","AMOUNT","RATE_DAILY","PERIOD"]
[426904499,1783001447000,-151.0,0.00030137,7]
[426904495,1783001447000,-151.0,0.00030137,7]
[426904507,1783001447000,-259.132223,0.00030137,7]
[426904506,1783001447000,-151.0,0.00030137,7]
[426904504,1783001447000,-151.0,0.00030137,7]
[426904580,1783001448000,-151.0,0.00030137,7]
[426904578,1783001448000,-151.0,0.00030137,7]
[426904570,1783001448000,-151.0,0.00030137,7]
[426904579,1783001448000,-169.367755,0.00030137,7]
[426904574,1783001448000,-151.0,0.00030137,7]
[426904572,1783001448000,-151.0,0.00030137,7]
[426904576,1783001448000,-152.617119,0.00030137,7]
[426904575,1783001448000,-152.617119,0.00030137,7]
[426904581,1783001448000,-151.0,0.00030137,7]
[426904573,1783001448000,-152.617119,0.00030137,7]
[426904584,1783001448000,-151.0,0.00030137,7]
[426904577,1783001448000,-151.0,0.00030137,7]
[426904571,1783001448000,-152.617119,0.00030137,7]
[426904593,1783001448000,-206.556146,0.00030137,7]
[426904583,1783001448000,-151.0,0.00030137,7]
[426904586,1783001448000,-151.0,0.00030137,7]
[426904582,1783001448000,-151.0,0.00030137,7]
[426904588,1783001448000,-151.0,0.00030137,7]
[426904589,1783001448000,-151.0,0.00030137,7]
[426904590,1783001448000,-151.0,0.00030137,7]
[426904587,1783001448000,-151.0,0.00030137,7]
[426904591,1783001448000,-151.0,0.00030137,7]
[426904592,1783001448000,-151.0,0.00030137,7]
[426904594,1783001448000,-151.0,0.00030137,7]
[426904606,1783001448000,-151.0,0.00030137,7]
[426904602,1783001448000,-151.0,0.00030137,7]
[426904563,1783001448000,-264.338401,0.00030137,7]
[426904585,1783001448000,-151.0,0.00030137,7]
[426904566,1783001448000,-151.0,0.00030137,7]
[426904537,1783001448000,-312.6216,0.00030137,7]
[426904569,1783001448000,-152.617119,0.00030137,7]
[426904599,1783001448000,-151.0,0.00030137,7]
[426904542,1783001448000,-151.0,0.00030137,7]
[426904538,1783001448000,-312.6216,0.00030137,7]
[426904539,1783001448000,-312.6216,0.00030137,7]
[426904540,1783001448000,-312.6216,0.00030137,7]
[426904541,1783001448000,-312.6216,0.00030137,7]
[426904543,1783001448000,-312.6216,0.00030137,7]
[426904545,1783001448000,-312.6216,0.00030137,7]
[426904544,1783001448000,-151.0,0.00030137,7]
[426904546,1783001448000,-312.6216,0.00030137,7]
[426904550,1783001448000,-151.0,0.00030137,7]
[426904548,1783001448000,-151.0,0.00030137,7]
[426904547,1783001448000,-151.0,0.00030137,7]
[426904555,1783001448000,-264.338401,0.00030137,7]
[426904553,1783001448000,-164.280336,0.00030137,7]
[426904556,1783001448000,-151.0,0.00030137,7]
[426904551,1783001448000,-151.0,0.00030137,7]
[426904549,1783001448000,-151.0,0.00030137,7]
[426904552,1783001448000,-151.0,0.00030137,7]
[426904557,1783001448000,-151.0,0.00030137,7]
[426904559,1783001448000,-264.338401,0.00030137,7]
[426904561,1783001448000,-264.338401,0.00030137,7]
[426904560,1783001448000,-264.338401,0.00030137,7]
[426904567,1783001448000,-151.0,0.00030137,7]
[426904568,1783001448000,-152.617119,0.00030137,7]
[426904565,1783001448000,-152.617119,0.00030137,7]
[426904562,1783001448000,-264.338401,0.00030137,7]
[426904558,1783001448000,-264.338401,0.00030137,7]
[426904596,1783001448000,-177.621367,0.00030137,7]
[426904554,1783001448000,-264.338401,0.00030137,7]
[426904601,1783001448000,-151.0,0.00030137,7]
[426904633,1783001448000,-151.0,0.00030137,7]
[426904634,1783001448000,-151.0,0.00030137,7]
[426904635,1783001448000,-826.708482,0.00030137,7]
[426904636,1783001448000,-151.0,0.00030137,7]
[426904639,1783001448000,-151.0,0.00030137,7]
[426904643,1783001448000,-151.0,0.00030137,7]
[426904640,1783001448000,-826.708482,0.00030137,7]
[426904637,1783001448000,-826.708482,0.00030137,7]
[426904641,1783001448000,-151.0,0.00030137,7]
[426904638,1783001448000,-151.0,0.00030137,7]
[426904642,1783001448000,-826.708482,0.00030137,7]
[426904644,1783001448000,-151.0,0.00030137,7]
[426904647,1783001448000,-151.0,0.00030137,7]
[426904628,1783001448000,-826.708482,0.00030137,7]
[426904646,1783001448000,-151.0,0.00030137,7]
[426904648,1783001448000,-151.0,0.00030137,7]
[426904652,1783001448000,-151.0,0.00030137,7]
[426904650,1783001448000,-151.0,0.00030137,7]
[426904649,1783001448000,-151.0,0.00030137,7]
[426904651,1783001448000,-151.0,0.00030137,7]
[426904653,1783001448000,-151.0,0.00030137,7]
[426904654,1783001448000,-151.0,0.00030137,7]
[426904655,1783001448000,-151.0,0.00030137,7]
[426904656,1783001448000,-2027.194656,0.00030137,7]
[426904657,1783001448000,-151.0,0.00030137,7]
[426904659,1783001448000,-2027.194656,0.00030137,7]
[426904658,1783001448000,-151.0,0.00030137,7]
[426904595,1783001448000,-151.0,0.00030137,7]
[426904645,1783001448000,-151.0,0.00030137,7]
[426904626,1783001448000,-151.0,0.00030137,7]
[426904564,1783001448000,-152.617119,0.00030137,7]
[426904607,1783001448000,-151.0,0.00030137,7]
[426904629,1783001448000,-826.708482,0.00030137,7]
[426904597,1783001448000,-151.0,0.00030137,7]
[426904598,1783001448000,-151.0,0.00030137,7]
[426904600,1783001448000,-151.0,0.00030137,7]
[426904603,1783001448000,-151.0,0.00030137,7]
[426904604,1783001448000,-151.0,0.00030137,7]
[426904605,1783001448000,-151.0,0.00030137,7]
[426904608,1783001448000,-151.0,0.00030137,7]
[426904610,1783001448000,-152.146205,0.00030137,7]
[426904609,1783001448000,-151.0,0.00030137,7]
[426904615,1783001448000,-230.562064,0.00030137,7]
[426904616,1783001448000,-156.183236,0.00030137,7]
[426904613,1783001448000,-151.0,0.00030137,7]
[426904617,1783001448000,-156.183236,0.00030137,7]
[426904619,1783001448000,-156.183236,0.00030137,7]
[426904611,1783001448000,-151.0,0.00030137,7]
[426904625,1783001448000,-161.68,0.00030137,7]
[426904624,1783001448000,-151.0,0.00030137,7]
[426904612,1783001448000,-151.0,0.00030137,7]
[426904627,1783001448000,-151.0,0.00030137,7]
[426904623,1783001448000,-156.183236,0.00030137,7]
[426904622,1783001448000,-156.183236,0.00030137,7]
[426904632,1783001448000,-151.0,0.00030137,7]
[426904631,1783001448000,-826.708482,0.00030137,7]
[426904630,1783001448000,-826.708482,0.00030137,7]
[426904621,1783001448000,-156.183236,0.00030137,7]
[426904618,1783001448000,-156.183236,0.00030137,7]
[426904614,1783001448000,-151.0,0.00030137,7]
[426904620,1783001448000,-156.183236,0.00030137,7]
[426904696,1783001449000,-1000.0,0.00030166,2]
[426904697,1783001449000,-1000.0,0.00030166,2]
[426904704,1783001449000,-1000.0,0.00030166,2]
[426904703,1783001449000,-1000.0,0.00030166,2]
[426904687,1783001449000,-1000.0,0.00030166,2]
[426904689,1783001449000,-1000.0,0.00030166,2]
[426904694,1783001449000,-1000.0,0.00030166,2]
[426904690,1783001449000,-1000.0,0.00030166,2]
[426904693,1783001449000,-1000.0,0.00030166,2]
[426904705,1783001449000,-1000.0,0.00030166,2]
[426904695,1783001449000,-1000.0,0.00030166,2]
[426904699,1783001449000,-1000.0,0.00030166,2]
[426904665,1783001449000,-180.035084,0.00030137,7]
[426904702,1783001449000,-1000.0,0.00030166,2]
[426904698,1783001449000,-1000.0,0.00030166,2]
[426904700,1783001449000,-1000.0,0.00030166,2]
[426904706,1783001449000,-1000.0,0.00030166,2]
[426904707,1783001449000,-1000.0,0.00030166,2]
[426904712,1783001449000,-1000.0,0.00030166,2]
[426904713,1783001449000,-1000.0,0.00030166,2]
[426904715,1783001449000,-1000.0,0.00030166,2]
[426904714,1783001449000,-1000.0,0.00030166,2]
[426904711,1783001449000,-1000.0,0.00030166,2]
[426904709,1783001449000,-1000.0,0.00030166,2]
[426904692,1783001449000,-1000.0,0.00030166,2]
[426904701,1783001449000,-1000.0,0.00030166,2]
[426904685,1783001449000,-1000.0,0.00030166,2]
[426904671,1783001449000,-860.914627,0.00030137,7]
[426904691,1783001449000,-1000.0,0.00030166,2]
[426904667,1783001449000,-2027.194656,0.00030137,7]
[426904666,1783001449000,-151.0,0.00030137,7]
[426904661,1783001449000,-151.0,0.00030137,7]
[426904664,1783001449000,-856.149411,0.00030137,7]
[426904662,1783001449000,-856.149411,0.00030137,7]
[426904660,1783001449000,-151.0,0.00030137,7]
[426904668,1783001449000,-2027.194656,0.00030137,7]
[426904663,1783001449000,-151.0,0.00030137,7]
[426904678,1783001449000,-1000.0,0.00030166,2]
[426904670,1783001449000,-860.914627,0.00030137,7]
[426904679,1783001449000,-1000.0,0.00030166,2]
[426904688,1783001449000,-1000.0,0.00030166,2]
[426904680,1783001449000,-1000.0,0.00030166,2]
[426904681,1783001449000,-1000.0,0.00030166,2]
[426904669,1783001449000,-151.0,0.00030137,7]
[426904672,1783001449000,-856.149411,0.00030137,7]
[426904676,1783001449000,-1000.0,0.00030166,2]
[426904677,1783001449000,-1000.0,0.00030166,2]
[426904674,1783001449000,-200.0,0.00030137,2]
[426904673,1783001449000,-516.65,0.00030137,30]
[426904675,1783001449000,-169.53,0.00030163,2]
[426904682,1783001449000,-1000.0,0.00030166,2]
[426904683,1783001449000,-1000.0,0.00030166,2]
[426904686,1783001449000,-1000.0,0.00030166,2]
[426904708,1783001449000,-1000.0,0.00030166,2]
[426904717,1783001449000,-1000.0,0.00030166,2]
[426904684,1783001449000,-1000.0,0.00030166,2]
[426904718,1783001449000,-1000.0,0.00030166,2]
[426904747,1783001449000,-90358.1314029,0.00030575,2]
[426904750,1783001449000,-13977.0470165,0.00030579,2]
[426904751,1783001449000,-837.5410158,0.00030579,2]
[426904749,1783001449000,-7567.1533551,0.00030578,2]
[426904752,1783001449000,-200.0,0.00030743,2]
[426904758,1783001449000,-150.24006919,0.00030868,7]
[426904748,1783001449000,-239.6826327,0.00030578,2]
[426904753,1783001449000,-150.0,0.00030746,30]
[426904754,1783001449000,-927.8454861,0.00030796,2]
[426904755,1783001449000,-159.08,0.000308,7]
[426904756,1783001449000,-800.47,0.00030847,14]
[426904757,1783001449000,-455.97254674,0.00030865,2]
[426904759,1783001449000,-500.0,0.000309,11]
[426904761,1783001449000,-800.0,0.00031,2]
[426904771,1783001449000,-298318.14293819,0.0003104,20]
[426904764,1783001449000,-800.0,0.00031,2]
[426904766,1783001449000,-1000.0,0.00031,7]
[426904760,1783001449000,-152.01526153,0.00030941,2]
[426904762,1783001449000,-800.0,0.00031,2]
[426904768,1783001449000,-151.0,0.00031037,7]
[426904763,1783001449000,-800.0,0.00031,2]
[426904769,1783001449000,-500.0,0.00031039,14]
[426904770,1783001449000,-500.0,0.00031039,60]
[426904767,1783001449000,-150.0,0.00031011,2]
[426904716,1783001449000,-1000.0,0.00030166,2]
[426904743,1783001449000,-800.0,0.000305,2]
[426904742,1783001449000,-800.0,0.000305,2]
[426904765,1783001449000,-373.10517474,0.00031,2]
[426904740,1783001449000,-800.0,0.000305,2]
[426904741,1783001449000,-800.0,0.000305,2]
[426904720,1783001449000,-1000.0,0.00030166,2]
[426904710,1783001449000,-1000.0,0.00030166,2]
[426904726,1783001449000,-538.63,0.00030166,7]
[426904729,1783001449000,-538.77791356,0.00030166,7]
[426904725,1783001449000,-538.63,0.00030166,7]
[426904721,1783001449000,-1000.0,0.00030166,2]
[426904731,1783001449000,-927.8454861,0.00030248,2]
[426904728,1783001449000,-538.63,0.00030166,7]
[426904733,1783001449000,-206585.5785627,0.00030397,2]
[426904730,1783001449000,-1065.39034105,0.00030205,2]
[426904727,1783001449000,-538.63,0.00030166,7]
[426904719,1783001449000,-1000.0,0.00030166,2]
[426904724,1783001449000,-456.10089585,0.00030166,2]
[426904744,1783001449000,-927.8454861,0.00030522,2]
[426904739,1783001449000,-800.0,0.000305,2]
[426904737,1783001449000,-2951.83,0.00030458,26]
[426904723,1783001449000,-1000.0,0.00030166,2]
[426904736,1783001449000,-150.0,0.00030441,30]
[426904746,1783001449000,-1765.0481419,0.00030575,2]
[426904738,1783001449000,-167.984,0.00030458,26]
[426904734,1783001449000,-855.15,0.000304,2]
[426904735,1783001449000,-200.0,0.00030438,2]
[426904732,1783001449000,-200.0,0.00030262,2]
[426904722,1783001449000,-1000.0,0.00030166,2]
[426904745,1783001449000,-3814.5769346,0.00030575,2]
[426904777,1783001450000,-4948.16485294,0.00027207,2]
[426904772,1783001450000,-856.149411,0.00030137,7]
[426904773,1783001450000,-983.226789,0.00030137,7]
[426904775,1783001450000,-472.86339972,0.00030137,7]
[426904774,1783001450000,-499.46881222,0.00030137,7]
[426904776,1783001450000,-541.90514706,0.00027207,2]
[426904778,1783001450000,-71.63565506,0.00030137,7]
[426904783,1783001450000,-2027.194656,0.00030137,7]
[426904782,1783001450000,-856.149411,0.00030137,7]
[426904779,1783001450000,-2027.194656,0.00030137,7]
[426904785,1783001450000,-2027.194656,0.00030137,7]
[426904781,1783001450000,-860.914627,0.00030137,7]
[426904780,1783001450000,-860.914627,0.00030137,7]
[426904786,1783001450000,-20090.28719963,0.0003104,20]
[426904784,1783001450000,-856.149411,0.00030137,7]
[426904806,1783001451000,-860.914627,0.00030137,7]
[426904805,1783001451000,-1530.7709169,0.0003104,20]
[426904804,1783001451000,-622.09611664,0.0003104,20]
[426904803,1783001451000,-24243.56701234,0.0003104,20]
[426904801,1783001451000,-856.149411,0.00030137,7]
[426904799,1783001451000,-860.914627,0.00030137,7]
[426904802,1783001451000,-860.914627,0.00030137,7]
[426904800,1783001451000,-856.149411,0.00030137,7]
[426904798,1783001451000,-860.914627,0.00030137,7]
[426904789,1783001451000,-169.39,0.00028648,30]
[426904796,1783001451000,-159.21,0.00030136,7]
[426904793,1783001451000,-161.95,0.00029388,7]
[426904795,1783001451000,-169.39,0.00029839,7]
[426904791,1783001451000,-169.39,0.00028945,7]
[426904790,1783001451000,-212.27,0.00028654,2]
[426904792,1783001451000,-169.39,0.00029243,2]
[426904794,1783001451000,-169.39,0.00029541,30]
[426904787,1783001451000,-159.2,0.00024658,2]
[426904788,1783001451000,-161.95,0.00028641,30]
[426904797,1783001451000,-161.97,0.00030136,2]
[426904807,1783001451000,-18876.1358163,0.0003104,20]
[426904809,1783001451000,-826.708482,0.0003104,7]
[426904811,1783001451000,-151.0,0.0003104,7]
[426904810,1783001451000,-151.0,0.0003104,7]
[426904829,1783001451000,-1804.93898775,0.0003104,7]
[426904821,1783001451000,-151.0,0.0003104,7]
[426904822,1783001451000,-2027.194656,0.0003104,7]
[426904828,1783001451000,-856.149411,0.0003104,7]
[426904825,1783001451000,-151.0,0.0003104,7]
[426904827,1783001451000,-860.914627,0.0003104,7]
[426904826,1783001451000,-2027.194656,0.0003104,7]
[426904819,1783001451000,-151.0,0.0003104,7]
[426904820,1783001451000,-151.0,0.0003104,7]
[426904824,1783001451000,-856.149411,0.0003104,7]
[426904818,1783001451000,-159.07388,0.0003104,7]
[426904817,1783001451000,-151.0,0.0003104,7]
[426904814,1783001451000,-826.708482,0.0003104,7]
[426904808,1783001451000,-826.708482,0.0003104,7]
[426904815,1783001451000,-151.0,0.0003104,7]
[426904813,1783001451000,-151.0,0.0003104,7]
[426904816,1783001451000,-151.0,0.0003104,7]
[426904823,1783001451000,-151.0,0.0003104,7]
[426904812,1783001451000,-826.708482,0.0003104,7]
[426904845,1783001452000,-9000.0,0.00031337,5]
[426904848,1783001452000,-281.98188127,0.0003135,2]
[426904841,1783001452000,-293.16232555,0.00031074,120]
[426904846,1783001452000,-245.0,0.00031342,3]
[426904850,1783001452000,-482.63,0.00031377,2]
[426904862,1783001452000,-927.8454861,0.00031618,2]
[426904847,1783001452000,-927.8454861,0.00031344,2]
[426904853,1783001452000,-500.0,0.00031499,60]
[426904864,1783001452000,-171.89,0.00031678,30]
[426904851,1783001452000,-300.0,0.00031418,30]
[426904849,1783001452000,-150.0,0.00031355,30]
[426904843,1783001452000,-159.08,0.000313,7]
[426904836,1783001452000,-856.149411,0.0003104,7]
[426904844,1783001452000,-152.0,0.00031329,4]
[426904840,1783001452000,-860.914627,0.0003104,7]
[426904835,1783001452000,-860.914627,0.0003104,7]
[426904832,1783001452000,-860.914627,0.0003104,7]
[426904833,1783001452000,-856.149411,0.0003104,7]
[426904834,1783001452000,-2027.194656,0.0003104,7]
[426904831,1783001452000,-222.25566825,0.0003104,7]
[426904830,1783001452000,-169.41,0.00030136,2]
[426904863,1783001452000,-150.0,0.00031659,30]
[426904838,1783001452000,-927.8454861,0.0003107,2]
[426904837,1783001452000,-150.0,0.0003105,30]
[426904839,1783001452000,-10.39767445,0.00031074,120]
[426904842,1783001452000,-25000.0,0.000311,10]
[426904861,1783001452000,-445.73,0.00031565,3]
[426904859,1783001452000,-1989.51908623,0.00031543,2]
[426904854,1783001452000,-800.0,0.000315,2]
[426904884,1783001452000,-370.45,0.00032,9]
[426904883,1783001452000,-1267.02432695,0.00032,9]
[426904881,1783001452000,-504.9477183,0.00031999,60]
[426904885,1783001452000,-5040.481776,0.00032,9]
[426904880,1783001452000,-151.0,0.00031997,7]
[426904879,1783001452000,-169.7,0.00031963,2]
[426904882,1783001452000,-28872.60925525,0.00032,9]
[426904877,1783001452000,-500.0,0.000319,11]
[426904860,1783001452000,-150.73298282,0.00031556,120]
[426904876,1783001452000,-2629.82,0.000319,7]
[426904866,1783001452000,-152.0,0.00031781,7]
[426904875,1783001452000,-927.8454861,0.00031892,2]
[426904874,1783001452000,-350.0,0.00031875,3]
[426904878,1783001452000,-150.0,0.00031963,30]
[426904872,1783001452000,-1503.0,0.00031848,7]
[426904858,1783001452000,-412.53295562,0.000315,2]
[426904873,1783001452000,-455.97254674,0.00031853,2]
[426904852,1783001452000,-501.95764274,0.00031499,14]
[426904855,1783001452000,-800.0,0.000315,2]
[426904857,1783001452000,-800.0,0.000315,2]
[426904856,1783001452000,-800.0,0.000315,2]
[426904867,1783001452000,-152.0,0.00031781,7]
[426904871,1783001452000,-151.0,0.00031826,7]
[426904869,1783001452000,-393.19740061,0.000318,7]
[426904868,1783001452000,-159.08,0.000318,7]
[426904870,1783001452000,-2013.0,0.000318,2]
[426904865,1783001452000,-151.0,0.00031781,7]
[426904886,1783001460000,248.98003645,0.0001,2]
[426904888,1783001476000,115000.0,0.0003013,120]
[426904898,1783001708000,19149.631532,7.945e-05,2]
[426904907,1783001956000,-157.387859,0.00017494,2]
[426904910,1783002027000,150.0,0.0001746,2]
[426904912,1783002092000,2000.0,0.00030136,120]
[426904913,1783002103000,2000.0,0.00030136,120]
[426904914,1783002129000,2000.0,0.00030136,120]
[426904916,1783002143000,2000.0,0.00030136,120]
[426904919,1783002173000,214.06657637,0.00030136,120]
[426904936,1783002624000,281997.9652,0.00023016,120]
[426904943,1783002631000,-63.45597079,0.00018179,2]
[426904942,1783002631000,-249.0,0.00018089,2]
[426904940,1783002631000,-151.0,0.00018,2]
[426904941,1783002631000,-151.0,0.00018,2]
[426904993,1783002632000,-500.0,0.00023656,2]
[426904988,1783002632000,-500.0,0.00023656,2]
[426904992,1783002632000,-415.97992462,0.00023656,2]
[426904989,1783002632000,-500.0,0.00023656,2]
[426904984,1783002632000,-500.0,0.00023656,2]
[426904982,1783002632000,-500.0,0.00023656,2]
[426905001,1783002632000,-500.0,0.00023656,2]
[426904974,1783002632000,-151.0,0.00023635,2]
[426904977,1783002632000,-617.50347332,0.00023656,2]
[426904978,1783002632000,-349.97722627,0.00023656,2]
[426904986,1783002632000,-500.0,0.00023656,2]
[426904996,1783002632000,-500.0,0.00023656,2]
[426905006,1783002632000,-24460.15133667,0.000239,2]
[426904980,1783002632000,-307.09182605,0.00023656,2]
[426905005,1783002632000,-3222.65,0.00023836,2]
[426905003,1783002632000,-66225.53728997,0.00023657,2]
[426905002,1783002632000,-500.0,0.00023656,2]
[426904998,1783002632000,-500.0,0.00023656,2]
[426904999,1783002632000,-500.0,0.00023656,2]
[426905000,1783002632000,-500.0,0.00023656,2]
[426905007,1783002632000,-177.79,0.0002392,2]
[426905009,1783002632000,-153.0,0.00024,2]
[426905019,1783002632000,-150.59046721,0.00024022,2]
[426905008,1783002632000,-150.0,0.00023934,2]
[426905004,1783002632000,-545.07572023,0.00023667,2]
[426904975,1783002632000,-151.0,0.00023635,2]
[426904968,1783002632000,-1000.0,0.00023115,2]
[426904966,1783002632000,-172.45,0.00023012,2]
[426904944,1783002632000,-86.54402921,0.00018179,2]
[426904947,1783002632000,-56.64309467,0.000198,2]
[426904948,1783002632000,-243.35690533,0.000198,2]
[426904945,1783002632000,-290.0,0.00018359,2]
[426904946,1783002632000,-250.0,0.000198,2]
[426904949,1783002632000,-849.14309467,0.0002,2]
[426904950,1783002632000,-572.60981031,0.0002,2]
[426904953,1783002632000,-2496.01,0.00021558,2]
[426904952,1783002632000,-193.0,0.00020096,2]
[426904951,1783002632000,-1091.79709502,0.0002,2]
[426904955,1783002632000,-150.0,0.00022689,2]
[426904954,1783002632000,-200.0,0.00022563,2]
[426904956,1783002632000,-805.55,0.00022689,2]
[426904957,1783002632000,-9999.99,0.00022689,2]
[426904959,1783002632000,-3222.65,0.00022701,2]
[426904970,1783002632000,-2384.29,0.00023116,7]
[426904972,1783002632000,-545.07572023,0.00023333,2]
[426904971,1783002632000,-3222.65,0.00023269,2]
[426904969,1783002632000,-150.0,0.00023115,2]
[426904960,1783002632000,-9999.99,0.00022701,2]
[426904958,1783002632000,-839.23,0.00022701,2]
[426904961,1783002632000,-2857.11,0.00022701,2]
[426904962,1783002632000,-9743.93524255,0.00022843,2]
[426904964,1783002632000,-545.07572023,0.00023,2]
[426905020,1783002632000,-150.59046719,0.00024022,2]
[426904973,1783002632000,-151.0,0.00023635,2]
[426905021,1783002632000,-500.0,0.00024034,2]
[426904976,1783002632000,-254.60488018,0.00023656,2]
[426905014,1783002632000,-545.07572023,0.00024,2]
[426905038,1783002632000,-152.01526153,0.00024967,2]
[426905037,1783002632000,-24460.15133663,0.00024888,2]
[426905041,1783002632000,-500.0,0.00024999,2]
[426905048,1783002632000,-169.0,0.00025,2]
[426905059,1783002632000,-185.66,0.00025,2]
[426905047,1783002632000,-165.0,0.00025,2]
[426905049,1783002632000,-545.07572023,0.00025,2]
[426905058,1783002632000,-278.99,0.00025,2]
[426905051,1783002632000,-164.0,0.00025,2]
[426905054,1783002632000,-3551.94,0.00025,2]
[426905050,1783002632000,-1000.0,0.00025,2]
[426905055,1783002632000,-2367.63,0.00025,2]
[426905053,1783002632000,-8289.19,0.00025,2]
[426905056,1783002632000,-180.0,0.00025,2]
[426905052,1783002632000,-156.0,0.00025,2]
[426905061,1783002632000,-157.23588198,0.00025637,2]
[426905068,1783002632000,-180.0,0.00026,2]
[426905063,1783002632000,-24460.15133663,0.00025876,2]
[426905060,1783002632000,-545.07572023,0.00025333,2]
[426905062,1783002632000,-545.07572023,0.00025667,2]
[426905066,1783002632000,-545.07572023,0.00026,2]
[426905067,1783002632000,-156.0,0.00026,2]
[426905065,1783002632000,-235.0,0.00026,2]
[426905064,1783002632000,-169.0,0.00026,2]
[426905011,1783002632000,-235.0,0.00024,2]
[426905039,1783002632000,-3222.65,0.00024971,2]
[426905040,1783002632000,-345.18432161,0.00024999,2]
[426905057,1783002632000,-652.3,0.00025,2]
[426905045,1783002632000,-161.0,0.00025,2]
[426905012,1783002632000,-155.0,0.00024,2]
[426905036,1783002632000,-209.44922207,0.00024879,2]
[426905017,1783002632000,-180.0,0.00024,2]
[426905010,1783002632000,-156.0,0.00024,2]
[426905016,1783002632000,-156.0,0.00024,2]
[426905013,1783002632000,-159.0,0.00024,2]
[426905018,1783002632000,-150.0,0.00024,2]
[426905015,1783002632000,-158.0,0.00024,2]
[426905022,1783002632000,-9117.86,0.00024174,2]
[426905024,1783002632000,-545.07572023,0.00024333,2]
[426905025,1783002632000,-9981.8,0.00024342,2]
[426905026,1783002632000,-3222.65,0.00024404,2]
[426905028,1783002632000,-810.58,0.0002458,2]
[426905027,1783002632000,-199.15,0.0002456,2]
[426905029,1783002632000,-500.0,0.00024582,2]
[426905023,1783002632000,-500.0,0.00024308,2]
[426905046,1783002632000,-235.0,0.00025,2]
[426905042,1783002632000,-500.0,0.00024999,2]
[426905043,1783002632000,-170.53673271,0.00024999,2]
[426905035,1783002632000,-175.84951452,0.00024856,2]
[426905030,1783002632000,-169.7,0.00024658,2]
[426905044,1783002632000,-153.0,0.00025,2]
[426905034,1783002632000,-1299.29,0.00024674,7]
[426905031,1783002632000,-1000.0,0.00024658,2]
[426905033,1783002632000,-545.07572023,0.00024667,2]
[426905032,1783002632000,-223.7,0.00024658,2]
[426905110,1783002633000,-173.74342898,0.00027558,2]
[426905121,1783002633000,-263.43453434,0.00027558,2]
[426905103,1783002633000,-178.26616555,0.00027397,2]
[426905102,1783002633000,-5264.85,0.00027397,10]
[426905104,1783002633000,-203.649258,0.0002744,14]
[426905105,1783002633000,-225.49,0.00027453,2]
[426905098,1783002633000,-4019.34,0.00027309,2]
[426905107,1783002633000,-292.750342,0.00027514,14]
[426905101,1783002633000,-1500.0,0.00027397,2]
[426905100,1783002633000,-208.68158068,0.00027397,2]
[426905109,1783002633000,-312.64715093,0.00027558,2]
[426905108,1783002633000,-472.9601681,0.00027558,2]
[426905120,1783002633000,-191.71264669,0.00027558,2]
[426905131,1783002633000,-178.86875094,0.00027558,2]
[426905112,1783002633000,-424.04242841,0.00027558,2]
[426905114,1783002633000,-172.37529826,0.00027558,2]
[426905117,1783002633000,-159.55580765,0.00027558,2]
[426905113,1783002633000,-158.55276957,0.00027558,2]
[426905119,1783002633000,-203.6039994,0.00027558,2]